fUST/lending_fUST_20260501
["ID","MTS","AMOUNT","RATE_DAILY","PERIOD"]
[421404682,1777566641000,-500.0,0.00019178,2]
[421404683,1777566641000,-500.0,0.00019178,2]
[421404687,1777566641000,-1018.79,0.00019178,2]
[421404689,1777566641000,-818.14,0.00019178,2]
[421404688,1777566641000,-500.0,0.00019178,2]
[421404670,1777566641000,-500.0,0.00019178,2]
[421404680,1777566641000,-500.0,0.00019178,2]
[421404665,1777566641000,-500.0,0.00019178,2]
[421404657,1777566641000,-609.89,0.00019178,2]
[421404664,1777566641000,-1224.18,0.00019178,2]
[421404693,1777566641000,-1346.32,0.00019178,2]
[421404648,1777566641000,-1871.08,0.00019178,2]
[421404645,1777566641000,-500.0,0.00019178,2]
[421404646,1777566641000,-500.0,0.00019178,2]
[421404649,1777566641000,-1948.17,0.00019178,2]
[421404647,1777566641000,-528.99,0.00019178,2]
[421404650,1777566641000,-1487.5,0.00019178,2]
[421404651,1777566641000,-1115.1,0.00019178,2]
[421404658,1777566641000,-500.0,0.00019178,2]
[421404659,1777566641000,-500.0,0.00019178,2]
[421404652,1777566641000,-1000.53,0.00019178,2]
[421404653,1777566641000,-500.0,0.00019178,2]
[421404654,1777566641000,-500.0,0.00019178,2]
[421404656,1777566641000,-500.0,0.00019178,2]
[421404655,1777566641000,-500.0,0.00019178,2]
[421404661,1777566641000,-500.0,0.00019178,2]
[421404662,1777566641000,-601.22,0.00019178,2]
[421404660,1777566641000,-603.55,0.00019178,2]
[421404663,1777566641000,-1719.81,0.00019178,2]
[421404666,1777566641000,-500.0,0.00019178,2]
[421404667,1777566641000,-796.48,0.00019178,2]
[421404668,1777566641000,-500.0,0.00019178,2]
[421404692,1777566641000,-500.0,0.00019178,2]
[421404703,1777566641000,-500.0,0.00019178,2]
[421404690,1777566641000,-500.0,0.00019178,2]
[421404718,1777566641000,-500.0,0.00019178,2]
[421404720,1777566641000,-242.76143667,0.00019178,2]
[421404722,1777566641000,-715.63,0.00019178,2]
[421404721,1777566641000,-500.0,0.00019178,2]
[421404723,1777566641000,-500.0,0.00019178,2]
[421404724,1777566641000,-500.0,0.00019178,2]
[421404725,1777566641000,-1892.79,0.00019178,2]
[421404726,1777566641000,-674.9,0.00019178,2]
[421404727,1777566641000,-500.0,0.00019178,2]
[421404719,1777566641000,-500.0,0.00019178,2]
[421404729,1777566641000,-712.36,0.00019178,2]
[421404730,1777566641000,-500.0,0.00019178,2]
[421404733,1777566641000,-2257.63,0.00019178,2]
[421404731,1777566641000,-500.0,0.00019178,2]
[421404736,1777566641000,-151.0,0.00019178,2]
[421404734,1777566641000,-151.0,0.00019178,2]
[421404735,1777566641000,-151.0,0.00019178,2]
[421404737,1777566641000,-268.077727,0.00019178,2]
[421404739,1777566641000,-745.12,0.00019178,2]
[421404691,1777566641000,-641.53,0.00019178,2]
[421404732,1777566641000,-1346.05,0.00019178,2]
[421404717,1777566641000,-775.19,0.00019178,2]
[421404728,1777566641000,-500.0,0.00019178,2]
[421404712,1777566641000,-500.0,0.00019178,2]
[421404713,1777566641000,-500.0,0.00019178,2]
[421404695,1777566641000,-500.0,0.00019178,2]
[421404694,1777566641000,-854.4,0.00019178,2]
[421404697,1777566641000,-500.0,0.00019178,2]
[421404696,1777566641000,-500.0,0.00019178,2]
[421404699,1777566641000,-543.38,0.00019178,2]
[421404700,1777566641000,-500.0,0.00019178,2]
[421404701,1777566641000,-500.0,0.00019178,2]
[421404702,1777566641000,-500.0,0.00019178,2]
[421404704,1777566641000,-500.0,0.00019178,2]
[421404698,1777566641000,-298.39349412,0.00019178,2]
[421404738,1777566641000,-822.82,0.00019178,2]
[421404707,1777566641000,-500.0,0.00019178,2]
[421404705,1777566641000,-500.0,0.00019178,2]
[421404708,1777566641000,-500.0,0.00019178,2]
[421404709,1777566641000,-500.0,0.00019178,2]
[421404715,1777566641000,-500.0,0.00019178,2]
[421404711,1777566641000,-500.0,0.00019178,2]
[421404710,1777566641000,-500.0,0.00019178,2]
[421404716,1777566641000,-500.0,0.00019178,2]
[421404706,1777566641000,-500.0,0.00019178,2]
[421404714,1777566641000,-584.88,0.00019178,2]
[421404771,1777566642000,-705.88,0.00019178,2]
[421404790,1777566642000,-1303.03,0.00019178,2]
[421404780,1777566642000,-500.0,0.00019178,2]
[421404777,1777566642000,-500.0,0.00019178,2]
[421404767,1777566642000,-536.27,0.00019178,2]
[421404774,1777566642000,-3472.71,0.00019178,2]
[421404772,1777566642000,-500.0,0.00019178,2]
[421404773,1777566642000,-500.0,0.00019178,2]
[421404775,1777566642000,-500.0,0.00019178,2]
[421404791,1777566642000,-624.8920935,0.00019178,2]
[421404776,1777566642000,-541.69,0.00019178,2]
[421404779,1777566642000,-500.0,0.00019178,2]
[421404803,1777566642000,-500.0,0.00019178,2]
[421404781,1777566642000,-500.0,0.00019178,2]
[421404782,1777566642000,-500.0,0.00019178,2]
[421404784,1777566642000,-1639.47,0.00019178,2]
[421404785,1777566642000,-500.0,0.00019178,2]
[421404786,1777566642000,-500.0,0.00019178,2]
[421404789,1777566642000,-2626.02,0.00019178,2]
[421404788,1777566642000,-500.0,0.00019178,2]
[421404793,1777566642000,-500.0,0.00019178,2]
[421404794,1777566642000,-500.0,0.00019178,2]
[421404792,1777566642000,-500.0,0.00019178,2]
[421404795,1777566642000,-500.0,0.00019178,2]
[421404770,1777566642000,-500.0,0.00019178,2]
[421404783,1777566642000,-500.0,0.00019178,2]
[421404769,1777566642000,-896.06,0.00019178,2]
[421404744,1777566642000,-500.0,0.00019178,2]
[421404766,1777566642000,-500.0,0.00019178,2]
[421404740,1777566642000,-500.0,0.00019178,2]
[421404741,1777566642000,-532.8,0.00019178,2]
[421404742,1777566642000,-855.79,0.00019178,2]
[421404743,1777566642000,-151.0,0.00019178,2]
[421404796,1777566642000,-500.0,0.00019178,2]
[421404746,1777566642000,-500.0,0.00019178,2]
[421404745,1777566642000,-166.680519,0.00019178,2]
[421404747,1777566642000,-500.0,0.00019178,2]
[421404748,1777566642000,-500.0,0.00019178,2]
[421404749,1777566642000,-500.0,0.00019178,2]
[421404750,1777566642000,-500.0,0.00019178,2]
[421404751,1777566642000,-151.0,0.00019178,2]
[421404768,1777566642000,-500.0,0.00019178,2]
[421404752,1777566642000,-500.0,0.00019178,2]
[421404755,1777566642000,-151.0,0.00019178,2]
[421404763,1777566642000,-500.0,0.00019178,2]
[421404765,1777566642000,-1172.67,0.00019178,2]
[421404754,1777566642000,-500.0,0.00019178,2]
[421404759,1777566642000,-1004.49,0.00019178,2]
[421404764,1777566642000,-500.0,0.00019178,2]
[421404757,1777566642000,-650.52,0.00019178,2]
[421404756,1777566642000,-193.03099,0.00019178,2]
[421404760,1777566642000,-500.0,0.00019178,2]
[421404761,1777566642000,-500.0,0.00019178,2]
[421404758,1777566642000,-500.0,0.00019178,2]
[421404762,1777566642000,-500.0,0.00019178,2]
[421404753,1777566642000,-151.0,0.00019178,2]
[421404801,1777566642000,-500.0,0.00019178,2]
[421404787,1777566642000,-569.43528022,0.00019178,2]
[421404800,1777566642000,-500.0,0.00019178,2]
[421404831,1777566642000,-353.270873,0.00019178,2]
[421404833,1777566642000,-696.05,0.00019178,2]
[421404836,1777566642000,-353.270873,0.00019178,2]
[421404832,1777566642000,-353.270873,0.00019178,2]
[421404837,1777566642000,-353.270873,0.00019178,2]
[421404834,1777566642000,-353.270873,0.00019178,2]
[421404842,1777566642000,-500.0,0.00019178,2]
[421404835,1777566642000,-353.270873,0.00019178,2]
[421404838,1777566642000,-500.0,0.00019178,2]
[421404841,1777566642000,-500.0,0.00019178,2]
[421404840,1777566642000,-500.0,0.00019178,2]
[421404839,1777566642000,-500.0,0.00019178,2]
[421404845,1777566642000,-500.0,0.00019178,2]
[421404843,1777566642000,-500.0,0.00019178,2]
[421404849,1777566642000,-287.961218,0.00019178,2]
[421404850,1777566642000,-500.0,0.00019178,2]
[421404854,1777566642000,-287.961218,0.00019178,2]
[421404856,1777566642000,-942.64,0.00019178,2]
[421404855,1777566642000,-287.961218,0.00019178,2]
[421404847,1777566642000,-500.0,0.00019178,2]
[421404848,1777566642000,-287.961218,0.00019178,2]
[421404846,1777566642000,-500.0,0.00019178,2]
[421404853,1777566642000,-500.0,0.00019178,2]
[421404851,1777566642000,-287.961218,0.00019178,2]
[421404852,1777566642000,-287.961218,0.00019178,2]
[421404858,1777566642000,-287.961218,0.00019178,2]
[421404798,1777566642000,-500.0,0.00019178,2]
[421404821,1777566642000,-1144.74,0.00019178,2]
[421404830,1777566642000,-500.0,0.00019178,2]
[421404844,1777566642000,-1171.47,0.00019178,2]
[421404824,1777566642000,-500.0,0.00019178,2]
[421404799,1777566642000,-500.0,0.00019178,2]
[421404827,1777566642000,-353.270873,0.00019178,2]
[421404797,1777566642000,-500.0,0.00019178,2]
[421404802,1777566642000,-500.0,0.00019178,2]
[421404815,1777566642000,-500.0,0.00019178,2]
[421404805,1777566642000,-500.0,0.00019178,2]
[421404816,1777566642000,-770.57,0.00019178,2]
[421404804,1777566642000,-500.0,0.00019178,2]
[421404807,1777566642000,-500.0,0.00019178,2]
[421404809,1777566642000,-500.0,0.00019178,2]
[421404811,1777566642000,-500.0,0.00019178,2]
[421404813,1777566642000,-692.55,0.00019178,2]
[421404808,1777566642000,-500.0,0.00019178,2]
[421404806,1777566642000,-500.0,0.00019178,2]
[421404829,1777566642000,-353.270873,0.00019178,2]
[421404820,1777566642000,-353.270873,0.00019178,2]
[421404812,1777566642000,-500.0,0.00019178,2]
[421404828,1777566642000,-353.270873,0.00019178,2]
[421404825,1777566642000,-1066.58,0.00019178,2]
[421404823,1777566642000,-353.270873,0.00019178,2]
[421404822,1777566642000,-353.270873,0.00019178,2]
[421404826,1777566642000,-353.270873,0.00019178,2]
[421404818,1777566642000,-353.270873,0.00019178,2]
[421404817,1777566642000,-353.270873,0.00019178,2]
[421404810,1777566642000,-500.0,0.00019178,2]
[421404814,1777566642000,-500.0,0.00019178,2]
[421404819,1777566642000,-353.270873,0.00019178,2]
[421404910,1777566643000,-559.73,0.00019178,2]
[421404901,1777566643000,-500.0,0.00019178,2]
[421404906,1777566643000,-500.0,0.00019178,2]
[421404905,1777566643000,-500.0,0.00019178,2]
[421404902,1777566643000,-500.0,0.00019178,2]
[421404903,1777566643000,-500.0,0.00019178,2]
[421404889,1777566643000,-1488.32,0.00019178,2]
[421404894,1777566643000,-500.0,0.00019178,2]
[421404893,1777566643000,-500.0,0.00019178,2]
[421404897,1777566643000,-500.0,0.00019178,2]
[421404898,1777566643000,-500.0,0.00019178,2]
[421404900,1777566643000,-500.0,0.00019178,2]
[421404899,1777566643000,-264.0676686,0.00019178,2]
[421404909,1777566643000,-500.0,0.00019178,2]
[421404918,1777566643000,-500.0,0.00019178,2]
[421404912,1777566643000,-500.0,0.00019178,2]
[421404908,1777566643000,-166.995451,0.00019178,2]
[421404911,1777566643000,-745.54,0.00019178,2]
[421404914,1777566643000,-650.26,0.00019178,2]
[421404925,1777566643000,-500.0,0.00019178,2]
[421404915,1777566643000,-500.0,0.00019178,2]
[421404924,1777566643000,-385.27362314,0.00019178,2]
[421404916,1777566643000,-500.0,0.00019178,2]
[421404917,1777566643000,-500.0,0.00019178,2]
[421404919,1777566643000,-500.0,0.00019178,2]
[421404922,1777566643000,-500.0,0.00019178,2]
[421404923,1777566643000,-4121.64,0.00019178,2]
[421404896,1777566643000,-2494.11,0.00019178,2]
[421404907,1777566643000,-500.0,0.00019178,2]
[421404895,1777566643000,-500.0,0.00019178,2]
[421404870,1777566643000,-805.58,0.00019178,2]
[421404892,1777566643000,-2648.73,0.00019178,2]
[421404921,1777566643000,-500.0,0.00019178,2]
[421404868,1777566643000,-287.961218,0.00019178,2]
[421404869,1777566643000,-287.961218,0.00019178,2]
[421404860,1777566643000,-287.961218,0.00019178,2]
[421404862,1777566643000,-287.961218,0.00019178,2]
[421404859,1777566643000,-287.961218,0.00019178,2]
[421404863,1777566643000,-500.0,0.00019178,2]
[421404861,1777566643000,-287.961218,0.00019178,2]
[421404866,1777566643000,-287.961218,0.00019178,2]
[421404867,1777566643000,-3009.47,0.00019178,2]
[421404865,1777566643000,-287.961218,0.00019178,2]
[421404864,1777566643000,-287.961218,0.00019178,2]
[421404872,1777566643000,-775.44,0.00019178,2]
[421404871,1777566643000,-500.0,0.00019178,2]
[421404873,1777566643000,-528.38,0.00019178,2]
[421404877,1777566643000,-1751.34,0.00019178,2]
[421404876,1777566643000,-823.92,0.00019178,2]
[421404874,1777566643000,-652.4,0.00019178,2]
[421404875,1777566643000,-153.825012,0.00019178,2]
[421404878,1777566643000,-500.0,0.00019178,2]
[421404880,1777566643000,-631.84,0.00019178,2]
[421404881,1777566643000,-500.0,0.00019178,2]
[421404882,1777566643000,-500.0,0.00019178,2]
[421404879,1777566643000,-500.0,0.00019178,2]
[421404883,1777566643000,-891.47,0.00019178,2]
[421404884,1777566643000,-1236.73,0.00019178,2]
[421404886,1777566643000,-500.0,0.00019178,2]
[421404887,1777566643000,-1098.69,0.00019178,2]
[421404885,1777566643000,-566.07,0.00019178,2]
[421404890,1777566643000,-500.0,0.00019178,2]
[421404920,1777566643000,-500.0,0.00019178,2]
[421404913,1777566643000,-156.079717,0.00019178,2]
[421404927,1777566643000,-1204.31,0.00019178,2]
[421404958,1777566643000,-597.16,0.00019178,2]
[421404959,1777566643000,-685.68,0.00019178,2]
[421404963,1777566643000,-1457.15,0.00019178,2]
[421404961,1777566643000,-4709.03,0.00019178,2]
[421404962,1777566643000,-1015.23,0.00019178,2]
[421404974,1777566643000,-500.0,0.00019178,2]
[421404976,1777566643000,-624.33,0.00019178,2]
[421404967,1777566643000,-500.0,0.00019178,2]
[421404977,1777566643000,-500.0,0.00019178,2]
[421404970,1777566643000,-1366.23,0.00019178,2]
[421404975,1777566643000,-549.97231076,0.00019178,2]
[421404978,1777566643000,-500.0,0.00019178,2]
[421404969,1777566643000,-500.0,0.00019178,2]
[421404979,1777566643000,-500.0,0.00019178,2]
[421404972,1777566643000,-1089.61,0.00019178,2]
[421404980,1777566643000,-2045.9,0.00019178,2]
[421404973,1777566643000,-500.0,0.00019178,2]
[421404971,1777566643000,-500.0,0.00019178,2]
[421404981,1777566643000,-500.0,0.00019178,2]
[421404982,1777566643000,-500.0,0.00019178,2]
[421404983,1777566643000,-500.0,0.00019178,2]
[421404984,1777566643000,-500.0,0.00019178,2]
[421404985,1777566643000,-151.0,0.00019178,2]
[421404987,1777566643000,-151.0,0.00019178,2]
[421404990,1777566643000,-151.0,0.00019178,2]
[421404986,1777566643000,-151.0,0.00019178,2]
[421404991,1777566643000,-151.0,0.00019178,2]
[421404988,1777566643000,-151.0,0.00019178,2]
[421404928,1777566643000,-500.0,0.00019178,2]
[421404957,1777566643000,-500.0,0.00019178,2]
[421404960,1777566643000,-1092.74,0.00019178,2]
[421404992,1777566643000,-151.0,0.00019178,2]
[421404955,1777566643000,-500.0,0.00019178,2]
[421404956,1777566643000,-500.0,0.00019178,2]
[421404929,1777566643000,-500.0,0.00019178,2]
[421404937,1777566643000,-508.39,0.00019178,2]
[421404930,1777566643000,-500.0,0.00019178,2]
[421404931,1777566643000,-529.27767334,0.00019178,2]
[421404932,1777566643000,-1044.18,0.00019178,2]
[421404935,1777566643000,-500.0,0.00019178,2]
[421404938,1777566643000,-3446.27,0.00019178,2]
[421404936,1777566643000,-500.0,0.00019178,2]
[421404989,1777566643000,-151.0,0.00019178,2]
[421404933,1777566643000,-999.73,0.00019178,2]
[421404934,1777566643000,-500.0,0.00019178,2]
[421404939,1777566643000,-1962.43,0.00019178,2]
[421404942,1777566643000,-637.17,0.00019178,2]
[421404940,1777566643000,-500.0,0.00019178,2]
[421404926,1777566643000,-500.0,0.00019178,2]
[421404941,1777566643000,-500.0,0.00019178,2]
[421404966,1777566643000,-6998.03,0.00019178,2]
[421404964,1777566643000,-653.31,0.00019178,2]
[421404954,1777566643000,-500.0,0.00019178,2]
[421404953,1777566643000,-500.0,0.00019178,2]
[421404943,1777566643000,-500.0,0.00019178,2]
[421404945,1777566643000,-541.96,0.00019178,2]
[421404946,1777566643000,-500.0,0.00019178,2]
[421404952,1777566643000,-500.0,0.00019178,2]
[421404950,1777566643000,-570.11,0.00019178,2]
[421404951,1777566643000,-500.0,0.00019178,2]
[421404947,1777566643000,-500.0,0.00019178,2]
[421404948,1777566643000,-500.0,0.00019178,2]
[421404944,1777566643000,-500.0,0.00019178,2]
[421404949,1777566643000,-500.0,0.00019178,2]
[421405036,1777566644000,-500.0,0.00019178,2]
[421405030,1777566644000,-500.0,0.00019178,2]
[421405034,1777566644000,-500.0,0.00019178,2]
[421405033,1777566644000,-500.0,0.00019178,2]
[421405035,1777566644000,-500.0,0.00019178,2]
[421405023,1777566644000,-642.4423336,0.00019178,2]
[421405029,1777566644000,-1161.59,0.00019178,2]
[421405027,1777566644000,-500.0,0.00019178,2]
[421405039,1777566644000,-209.925091,0.00019178,2]
[421405038,1777566644000,-500.0,0.00019178,2]
[421405028,1777566644000,-500.0,0.00019178,2]
[421405032,1777566644000,-1334.62,0.00019178,2]
[421405031,1777566644000,-705.34,0.00019178,2]
[421405040,1777566644000,-209.925091,0.00019178,2]
[421405052,1777566644000,-500.0,0.00019178,2]
[421405041,1777566644000,-209.925091,0.00019178,2]
[421405042,1777566644000,-209.925091,0.00019178,2]
[421405046,1777566644000,-209.925091,0.00019178,2]
[421405043,1777566644000,-500.0,0.00019178,2]
[421405051,1777566644000,-209.925091,0.00019178,2]
[421405047,1777566644000,-500.0,0.00019178,2]
[421405050,1777566644000,-500.0,0.00019178,2]
[421405053,1777566644000,-209.925091,0.00019178,2]
[421405045,1777566644000,-209.925091,0.00019178,2]
[421405048,1777566644000,-209.925091,0.00019178,2]
[421405044,1777566644000,-209.925091,0.00019178,2]
[421405019,1777566644000,-500.0,0.00019178,2]
[421405037,1777566644000,-194.9787629,0.00019178,2]
[421405018,1777566644000,-500.0,0.00019178,2]
[421405008,1777566644000,-500.0,0.00019178,2]
[421405022,1777566644000,-7467.33,0.00019178,2]
[421405049,1777566644000,-209.925091,0.00019178,2]
[421404993,1777566644000,-151.0,0.00019178,2]
[421404995,1777566644000,-151.0,0.00019178,2]
[421404994,1777566644000,-151.0,0.00019178,2]
[421404999,1777566644000,-151.0,0.00019178,2]
[421404998,1777566644000,-151.0,0.00019178,2]
[421404996,1777566644000,-560.4,0.00019178,2]
[421404997,1777566644000,-151.0,0.00019178,2]
[421405001,1777566644000,-500.0,0.00019178,2]
[421405000,1777566644000,-500.0,0.00019178,2]
[421405002,1777566644000,-151.0,0.00019178,2]
[421405003,1777566644000,-168.115239,0.00019178,2]
[421405004,1777566644000,-151.0,0.00019178,2]
[421405011,1777566644000,-3083.48,0.00019178,2]
[421405009,1777566644000,-1020.17,0.00019178,2]
[421405006,1777566644000,-500.0,0.00019178,2]
[421405005,1777566644000,-500.0,0.00019178,2]
[421405007,1777566644000,-717.58,0.00019178,2]
[421405010,1777566644000,-500.0,0.00019178,2]
[421405012,1777566644000,-500.0,0.00019178,2]
[421405013,1777566644000,-1105.38,0.00019178,2]
[421405017,1777566644000,-500.0,0.00019178,2]
[421405015,1777566644000,-500.0,0.00019178,2]
[421405014,1777566644000,-500.0,0.00019178,2]
[421405016,1777566644000,-2053.99,0.00019178,2]
[421405024,1777566644000,-1001.29,0.00019178,2]
[421405026,1777566644000,-1225.08,0.00019178,2]
[421405020,1777566644000,-500.0,0.00019178,2]
[421405025,1777566644000,-500.0,0.00019178,2]
[421405021,1777566644000,-3504.75,0.00019178,2]
[421405054,1777566644000,-209.925091,0.00019178,2]
[421405056,1777566644000,-209.925091,0.00019178,2]
[421405058,1777566644000,-209.92509778,0.00019178,2]
[421405081,1777566644000,-500.0,0.00019178,2]
[421405092,1777566644000,-500.0,0.00019178,2]
[421405093,1777566644000,-686.95,0.00019178,2]
[421405095,1777566644000,-500.0,0.00019178,2]
[421405105,1777566644000,-500.0,0.00019178,2]
[421405106,1777566644000,-500.0,0.00019178,2]
[421405107,1777566644000,-500.0,0.00019178,2]
[421405094,1777566644000,-4202.16,0.00019178,2]
[421405100,1777566644000,-500.0,0.00019178,2]
[421405097,1777566644000,-663.41,0.00019178,2]
[421405101,1777566644000,-500.0,0.00019178,2]
[421405098,1777566644000,-500.0,0.00019178,2]
[421405096,1777566644000,-500.0,0.00019178,2]
[421405091,1777566644000,-500.0,0.00019178,2]
[421405104,1777566644000,-649.03,0.00019178,2]
[421405099,1777566644000,-500.0,0.00019178,2]
[421405103,1777566644000,-500.0,0.00019178,2]
[421405109,1777566644000,-1359.99,0.00019178,2]
[421405114,1777566644000,-500.0,0.00019178,2]
[421405108,1777566644000,-1116.03,0.00019178,2]
[421405110,1777566644000,-500.0,0.00019178,2]
[421405112,1777566644000,-457.66096203,0.00019178,2]
[421405118,1777566644000,-1440.11,0.00019178,2]
[421405115,1777566644000,-500.0,0.00019178,2]
[421405111,1777566644000,-500.0,0.00019178,2]
[421405113,1777566644000,-934.17,0.00019178,2]
[421405057,1777566644000,-209.925091,0.00019178,2]
[421405117,1777566644000,-500.0,0.00019178,2]
[421405102,1777566644000,-223.714501,0.00019178,2]
[421405090,1777566644000,-500.0,0.00019178,2]
[421405116,1777566644000,-500.0,0.00019178,2]
[421405084,1777566644000,-500.0,0.00019178,2]
[421405089,1777566644000,-500.0,0.00019178,2]
[421405055,1777566644000,-209.925091,0.00019178,2]
[421405065,1777566644000,-1661.54,0.00019178,2]
[421405062,1777566644000,-1708.77,0.00019178,2]
[421405061,1777566644000,-267.384616,0.00019178,2]
[421405063,1777566644000,-3009.22,0.00019178,2]
[421405060,1777566644000,-500.0,0.00019178,2]
[421405059,1777566644000,-1040.09,0.00019178,2]
[421405064,1777566644000,-482.40548265,0.00019178,2]
[421405068,1777566644000,-924.32,0.00019178,2]
[421405078,1777566644000,-500.0,0.00019178,2]
[421405079,1777566644000,-237.21420844,0.00019178,2]
[421405067,1777566644000,-1097.87,0.00019178,2]
[421405069,1777566644000,-500.0,0.00019178,2]
[421405066,1777566644000,-500.0,0.00019178,2]
[421405076,1777566644000,-151.0,0.00019178,2]
[421405071,1777566644000,-500.0,0.00019178,2]
[421405087,1777566644000,-2312.76,0.00019178,2]
[421405085,1777566644000,-500.0,0.00019178,2]
[421405088,1777566644000,-1552.41,0.00019178,2]
[421405083,1777566644000,-500.0,0.00019178,2]
[421405082,1777566644000,-762.69,0.00019178,2]
[421405086,1777566644000,-500.0,0.00019178,2]
[421405077,1777566644000,-189.068753,0.00019178,2]
[421405073,1777566644000,-151.0,0.00019178,2]
[421405074,1777566644000,-151.0,0.00019178,2]
[421405072,1777566644000,-151.0,0.00019178,2]
[421405070,1777566644000,-151.0,0.00019178,2]
[421405075,1777566644000,-977.73,0.00019178,2]
[421405080,1777566644000,-2939.89,0.00019178,2]
[421405159,1777566645000,-500.0,0.00019178,2]
[421405154,1777566645000,-500.0,0.00019178,2]
[421405161,1777566645000,-1816.19,0.00019178,2]
[421405156,1777566645000,-350.97055023,0.00019178,2]
[421405155,1777566645000,-500.0,0.00019178,2]
[421405165,1777566645000,-822.31,0.00019178,2]
[421405150,1777566645000,-710.57,0.00019178,2]
[421405149,1777566645000,-500.0,0.00019178,2]
[421405146,1777566645000,-9159.94,0.00019178,2]
[421405163,1777566645000,-500.0,0.00019178,2]
[421405157,1777566645000,-500.0,0.00019178,2]
[421405152,1777566645000,-500.0,0.00019178,2]
[421405179,1777566645000,-705.03,0.00019178,2]
[421405162,1777566645000,-500.0,0.00019178,2]
[421405164,1777566645000,-500.0,0.00019178,2]
[421405167,1777566645000,-151.0,0.00019178,2]
[421405175,1777566645000,-529.61,0.00019178,2]
[421405176,1777566645000,-500.0,0.00019178,2]
[421405177,1777566645000,-500.0,0.00019178,2]
[421405178,1777566645000,-1030.23,0.00019178,2]
[421405166,1777566645000,-500.0,0.00019178,2]
[421405168,1777566645000,-500.0,0.00019178,2]
[421405170,1777566645000,-359.58412029,0.00019178,2]
[421405173,1777566645000,-500.0,0.00019178,2]
[421405171,1777566645000,-1062.68,0.00019178,2]
[421405145,1777566645000,-500.0,0.00019178,2]
[421405158,1777566645000,-684.17,0.00019178,2]
[421405144,1777566645000,-323.279302,0.00019178,2]
[421405128,1777566645000,-323.279302,0.00019178,2]
[421405148,1777566645000,-323.279299,0.00019178,2]
[421405174,1777566645000,-500.0,0.00019178,2]
[421405119,1777566645000,-151.0,0.00019178,2]
[421405120,1777566645000,-151.0,0.00019178,2]
[421405122,1777566645000,-1421.39,0.00019178,2]
[421405124,1777566645000,-500.0,0.00019178,2]
[421405123,1777566645000,-500.0,0.00019178,2]
[421405133,1777566645000,-323.279302,0.00019178,2]
[421405132,1777566645000,-500.0,0.00019178,2]
[421405134,1777566645000,-323.279302,0.00019178,2]
[421405121,1777566645000,-500.0,0.00019178,2]
[421405127,1777566645000,-323.279302,0.00019178,2]
[421405126,1777566645000,-500.0,0.00019178,2]
[421405130,1777566645000,-323.279302,0.00019178,2]
[421405129,1777566645000,-323.279302,0.00019178,2]
[421405125,1777566645000,-263.09517657,0.00019178,2]
[421405131,1777566645000,-323.279302,0.00019178,2]
[421405136,1777566645000,-323.279302,0.00019178,2]